[Event "*** Titled Tuesday 3|2 Blitz"]
[Site "Chess.com"]
[Date "2015.03.03"]
[Round "5"]
[White "Brandon_Clarke"]
[Black "biostatistician"]
[Result "0-1"]
[WhiteElo "2302"]
[BlackElo "2307"]
[TimeControl "180+2"]
[EndTime "12:00:40 PST"]
[Termination "biostatistician won by resignation"]

1. e4 {[%clk 0:03:00]} 1... e6 {[%clk 0:02:58.8]} 2. d4 {[%clk 0:03:00.7]} 2...
d5 {[%clk 0:03:00.3]} 3. Nd2 {[%clk 0:03:02]} 3... Nc6 {[%clk 0:03:01]} 4. Ngf3
{[%clk 0:03:01.6]} 4... Nf6 {[%clk 0:03:02.4]} 5. e5 {[%clk 0:03:02.9]} 5... Ne4
{[%clk 0:03:03.9]} 6. Bd3 {[%clk 0:02:59.7]} 6... Nxd2 {[%clk 0:03:05]} 7. Bxd2
{[%clk 0:03:00.2]} 7... Nb4 {[%clk 0:03:06.5]} 8. Bxb4 {[%clk 0:03:00.1]} 8...
Bxb4+ {[%clk 0:03:08.4]} 9. c3 {[%clk 0:03:01.5]} 9... Be7 {[%clk 0:03:09.9]}
10. O-O {[%clk 0:03:02.6]} 10... Bd7 {[%clk 0:03:11.3]} 11. Nd2 {[%clk
0:02:59.9]} 11... c5 {[%clk 0:03:05.6]} 12. Qg4 {[%clk 0:02:59.6]} 12... g6
{[%clk 0:03:03.4]} 13. a3 {[%clk 0:02:58]} 13... c4 {[%clk 0:02:59.3]} 14. Bc2
{[%clk 0:02:58.2]} 14... h5 {[%clk 0:02:54.4]} 15. Qh3 {[%clk 0:02:53.6]} 15...
Qc7 {[%clk 0:02:46.5]} 16. b4 {[%clk 0:02:46.2]} 16... cxb3 {[%clk 0:02:46.8]}
17. Bxb3 {[%clk 0:02:45.5]} 17... Rc8 {[%clk 0:02:45.4]} 18. c4 {[%clk
0:02:43.6]} 18... dxc4 {[%clk 0:02:45.5]} 19. Bxc4 {[%clk 0:02:41.9]} 19... O-O
{[%clk 0:02:44.4]} 20. Rfc1 {[%clk 0:02:29.7]} 20... Qa5 {[%clk 0:02:44.8]} 21.
Ne4 {[%clk 0:02:27.1]} 21... Bb5 {[%clk 0:02:36.5]} 22. Bxe6 {[%clk 0:02:22.9]}
22... Rxc1+ {[%clk 0:02:23.1]} 23. Rxc1 {[%clk 0:02:22.7]} 23... Qxa3 {[%clk
0:02:16.9]} 24. Rb1 {[%clk 0:00:39.8]} 24... Qxh3 {[%clk 0:01:47.8]} 25. Bxh3
{[%clk 0:00:40.1]} 25... Bc6 {[%clk 0:01:49]} 26. Nc3 {[%clk 0:00:36.8]} 26...
Rd8 {[%clk 0:01:49.1]} 27. Rd1 {[%clk 0:00:37.5]} 27... Bb4 {[%clk 0:01:48.3]}
28. Na2 {[%clk 0:00:36.4]} 28... a5 {[%clk 0:01:45.2]} 29. Nxb4 {[%clk 0:00:34]}
29... axb4 {[%clk 0:01:46.3]} 30. f4 {[%clk 0:00:35.3]} 30... b3 {[%clk
0:01:44.8]} 31. Kf2 {[%clk 0:00:34.3]} 31... Be4 {[%clk 0:01:27.1]} 32. Ke3
{[%clk 0:00:35.4]} 32... Bc2 {[%clk 0:01:27.8]} 33. Re1 {[%clk 0:00:34.2]} 33...
b2 {[%clk 0:01:28.3]} 34. g4 {[%clk 0:00:34.8]} 34... hxg4 {[%clk 0:01:28.6]}
35. Bxg4 {[%clk 0:00:35.6]} 35... b1=Q {[%clk 0:01:30]} 36. Rxb1 {[%clk
0:00:36.7]} 36... Bxb1 {[%clk 0:01:31.9]} 37. Bf3 {[%clk 0:00:38.3]} 37... b5
{[%clk 0:01:31.3]} 38. d5 {[%clk 0:00:39.8]} 38... b4 {[%clk 0:01:32.5]} 39. Kd4
{[%clk 0:00:40.9]} 39... b3 {[%clk 0:01:29.5]} 40. Kc3 {[%clk 0:00:40.9]} 40...
Bc2 {[%clk 0:01:30.7]} 41. d6 {[%clk 0:00:42.1]} 41... Kf8 {[%clk 0:01:31.8]}
42. Bd5 {[%clk 0:00:40.6]} 42... Rb8 {[%clk 0:01:30.9]} 43. Kb2 {[%clk
0:00:41.1]} 43... Bf5 {[%clk 0:01:24.3]} 44. h4 {[%clk 0:00:42]} 44... Be6
{[%clk 0:01:25.2]} 45. Bc6 {[%clk 0:00:41.9]} 45... Rb6 {[%clk 0:01:21.3]} 46.
Be4 {[%clk 0:00:41.5]} 46... Ke8 {[%clk 0:01:21.1]} 47. h5 {[%clk 0:00:42.4]}
47... gxh5 {[%clk 0:01:21.7]} 48. f5 {[%clk 0:00:43.7]} 48... Bc4 {[%clk
0:01:22.8]} 49. Bf3 {[%clk 0:00:43.6]} 49... h4 {[%clk 0:01:23.4]} 50. Bh5
{[%clk 0:00:44.1]} 50... h3 {[%clk 0:01:22.6]} 51. e6 {[%clk 0:00:42.9]} 51...
Rxd6 {[%clk 0:01:22.3]} 52. Bxf7+ {[%clk 0:00:43.8]} 52... Ke7 {[%clk
0:01:21.9]} 53. Bh5 {[%clk 0:00:42.7]} 53... h2 {[%clk 0:01:21.2]} 54. Bf3
{[%clk 0:00:43.9]} 54... Bd5 {[%clk 0:01:21.2]} 0-1

[Event "*** Titled Tuesday 3|2 Blitz"]
[Site "Chess.com"]
[Date "2015.03.03"]
[Round "5"]
[White "manitodeplomo"]
[Black "AungTZ"]
[Result "1-0"]
[WhiteElo "2288"]
[BlackElo "2061"]
[TimeControl "180+2"]
[EndTime "12:00:47 PST"]
[Termination "manitodeplomo won by resignation"]

1. d4 {[%clk 0:02:56.3]} 1... Nf6 {[%clk 0:02:58]} 2. c4 {[%clk 0:02:55.7]} 2...
e6 {[%clk 0:02:59.1]} 3. Nf3 {[%clk 0:02:56.2]} 3... d5 {[%clk 0:02:59.9]} 4.
Nc3 {[%clk 0:02:54.8]} 4... Be7 {[%clk 0:02:59]} 5. Bg5 {[%clk 0:02:54.7]} 5...
Ne4 {[%clk 0:02:59.9]} 6. Bxe7 {[%clk 0:02:50.7]} 6... Qxe7 {[%clk 0:03:00.7]}
7. e3 {[%clk 0:02:51.5]} 7... f5 {[%clk 0:03:00.5]} 8. Bd3 {[%clk 0:02:45.2]}
8... c6 {[%clk 0:03:01.1]} 9. O-O {[%clk 0:02:46.1]} 9... O-O {[%clk 0:03:01.5]}
10. Qc2 {[%clk 0:02:43.8]} 10... Bd7 {[%clk 0:03:00]} 11. Rab1 {[%clk
0:02:29.4]} 11... Kh8 {[%clk 0:03:00.1]} 12. b4 {[%clk 0:02:29.6]} 12... Nxc3
{[%clk 0:02:53.2]} 13. Qxc3 {[%clk 0:02:30.1]} 13... a6 {[%clk 0:02:54.7]} 14.
a4 {[%clk 0:02:29]} 14... Be8 {[%clk 0:02:39.1]} 15. b5 {[%clk 0:02:25.7]} 15...
Nd7 {[%clk 0:02:19.3]} 16. bxc6 {[%clk 0:02:23.8]} 16... bxc6 {[%clk 0:02:20.4]}
17. Rb7 {[%clk 0:02:21]} 17... Qd6 {[%clk 0:02:07.9]} 18. c5 {[%clk 0:02:17.5]}
18... Qe7 {[%clk 0:02:02.4]} 19. Ne5 {[%clk 0:02:18.1]} 19... Rc8 {[%clk
0:02:00.8]} 20. Bxa6 {[%clk 0:02:19.1]} 20... Qd8 {[%clk 0:01:58.4]} 21. Nxd7
{[%clk 0:01:57.1]} 21... Bxd7 {[%clk 0:01:57.7]} 22. Bd3 {[%clk 0:01:53.9]}
22... Ra8 {[%clk 0:01:57.5]} 23. a5 {[%clk 0:01:53.9]} 23... Bc8 {[%clk
0:01:52.1]} 24. Rb6 {[%clk 0:01:53.4]} 24... Bd7 {[%clk 0:01:48.9]} 25. a6
{[%clk 0:01:53.3]} 25... f4 {[%clk 0:01:48.2]} 26. e4 {[%clk 0:01:46.5]} 26...
f3 {[%clk 0:01:48.7]} 27. g3 {[%clk 0:01:47.2]} 27... Qf6 {[%clk 0:01:13.1]} 28.
e5 {[%clk 0:01:47.5]} 28... Qh6 {[%clk 0:01:12.4]} 29. Re1 {[%clk 0:01:47.6]}
29... Be8 {[%clk 0:01:00]} 30. Ra1 {[%clk 0:01:19.2]} 30... Bg6 {[%clk
0:00:58.4]} 31. Bf1 {[%clk 0:01:18.8]} 31... Bf5 {[%clk 0:00:59.7]} 32. a7
{[%clk 0:00:57.4]} 32... Bh3 {[%clk 0:00:59]} 33. Qe1 {[%clk 0:00:51.5]} 33...
Bxf1 {[%clk 0:00:54.4]} 34. Qxf1 {[%clk 0:00:51.6]} 34... Qd2 {[%clk 0:00:55.8]}
35. Qd1 {[%clk 0:00:31.2]} 35... Rxa7 {[%clk 0:00:45]} 36. Rxc6 {[%clk
0:00:22.9]} 36... Ra2 {[%clk 0:00:42.8]} 37. Qf1 {[%clk 0:00:17.8]} 37... Qxd4
{[%clk 0:00:43]} 38. Rxa2 {[%clk 0:00:17.2]} 1-0

[Event "*** Titled Tuesday 3|2 Blitz"]
[Site "Chess.com"]
[Date "2015.03.03"]
[Round "5"]
[White "DanielNaroditsky"]
[Black "Cryptochess"]
[Result "1-0"]
[WhiteElo "2600"]
[BlackElo "2392"]
[TimeControl "180+2"]
[EndTime "12:01:28 PST"]
[Termination "DanielNaroditsky won by resignation"]

1. b3 {[%clk 0:03:00]} 1... Nf6 {[%clk 0:02:52.3]} 2. Bb2 {[%clk 0:03:00.3]}
2... d5 {[%clk 0:02:53.1]} 3. g3 {[%clk 0:02:58.2]} 3... Nc6 {[%clk 0:02:52.9]}
4. Bg2 {[%clk 0:02:58.1]} 4... e5 {[%clk 0:02:53.8]} 5. d3 {[%clk 0:02:59.1]}
5... Be6 {[%clk 0:02:53.6]} 6. Nd2 {[%clk 0:03:00.4]} 6... Be7 {[%clk
0:02:54.1]} 7. Ngf3 {[%clk 0:03:00.8]} 7... Nd7 {[%clk 0:02:51.4]} 8. O-O {[%clk
0:03:00.8]} 8... O-O {[%clk 0:02:52]} 9. c4 {[%clk 0:02:58.7]} 9... d4 {[%clk
0:02:51.7]} 10. a3 {[%clk 0:02:55]} 10... a5 {[%clk 0:02:52.4]} 11. Ne1 {[%clk
0:02:55.3]} 11... Nc5 {[%clk 0:02:51.8]} 12. Nc2 {[%clk 0:02:56.1]} 12... Qd7
{[%clk 0:02:48]} 13. Re1 {[%clk 0:02:50.3]} 13... f5 {[%clk 0:02:43.5]} 14. Rb1
{[%clk 0:02:49.5]} 14... Bf6 {[%clk 0:01:49.7]} 15. b4 {[%clk 0:02:48.8]} 15...
Na4 {[%clk 0:01:43.1]} 16. Ba1 {[%clk 0:02:38.5]} 16... Nc3 {[%clk 0:01:29.5]}
17. Bxc3 {[%clk 0:02:39]} 17... dxc3 {[%clk 0:01:30.9]} 18. Nb3 {[%clk
0:02:40.9]} 18... e4 {[%clk 0:01:14.9]} 19. Nc5 {[%clk 0:02:41]} 19... Qf7
{[%clk 0:01:14.8]} 20. Nxe6 {[%clk 0:02:35.7]} 20... Qxe6 {[%clk 0:01:15.1]} 21.
b5 {[%clk 0:02:17.2]} 21... Nd4 {[%clk 0:01:01.4]} 22. dxe4 {[%clk 0:02:13.4]}
22... Qxc4 {[%clk 0:00:59.3]} 23. Ne3 {[%clk 0:02:07.1]} 23... Qc5 {[%clk
0:00:59.8]} 24. Qd3 {[%clk 0:02:03.4]} 24... Rad8 {[%clk 0:00:49]} 25. Nd5
{[%clk 0:01:49.4]} 25... c6 {[%clk 0:00:38.8]} 26. bxc6 {[%clk 0:01:48.1]} 26...
bxc6 {[%clk 0:00:39]} 27. Nxf6+ {[%clk 0:01:27.3]} 27... Rxf6 {[%clk 0:00:40.3]}
28. Rbc1 {[%clk 0:01:20.6]} 28... c2 {[%clk 0:00:25.7]} 29. e5 {[%clk
0:01:07.7]} 29... Qxe5 {[%clk 0:00:23.3]} 30. Qc4+ {[%clk 0:01:03.2]} 30... Qe6
{[%clk 0:00:17.4]} 31. Qxe6+ {[%clk 0:01:04.3]} 31... Rxe6 {[%clk 0:00:18.2]}
32. e3 {[%clk 0:01:06]} 32... Nb5 {[%clk 0:00:10.1]} 33. Rxc2 {[%clk 0:01:05]}
33... Nxa3 {[%clk 0:00:11]} 34. Rc5 {[%clk 0:01:05.4]} 34... Nb5 {[%clk
0:00:08.3]} 35. Bxc6 {[%clk 0:01:06.2]} 35... Nd6 {[%clk 0:00:08.5]} 36. Bd5
{[%clk 0:01:07]} 36... Kf7 {[%clk 0:00:09.5]} 37. Rxa5 {[%clk 0:01:07.6]} 37...
Kf6 {[%clk 0:00:09.4]} 38. Bxe6 {[%clk 0:01:08.8]} 38... Kxe6 {[%clk 0:00:11.3]}
39. Rd1 {[%clk 0:01:10.5]} 39... g5 {[%clk 0:00:05.7]} 40. Rad5 {[%clk
0:01:10.6]} 40... h5 {[%clk 0:00:06]} 41. h3 {[%clk 0:01:10]} 41... Rd7 {[%clk
0:00:07]} 42. g4 {[%clk 0:01:10.1]} 42... hxg4 {[%clk 0:00:07.4]} 43. hxg4
{[%clk 0:01:11.5]} 43... fxg4 {[%clk 0:00:08.6]} 44. Rxg5 {[%clk 0:01:12.7]}
44... Ne4 {[%clk 0:00:03.8]} 45. Rg6+ {[%clk 0:01:13.1]} 45... Kf5 {[%clk
0:00:04.7]} 46. Rxd7 {[%clk 0:01:13.8]} 46... Kxg6 {[%clk 0:00:05.4]} 47. Rd4
{[%clk 0:01:14.7]} 47... Kf5 {[%clk 0:00:06.5]} 48. Kg2 {[%clk 0:01:09.7]} 48...
Nf6 {[%clk 0:00:03.4]} 49. Rf4+ {[%clk 0:01:10.7]} 49... Kg5 {[%clk 0:00:04.4]}
50. Rxf6 {[%clk 0:01:10.5]} 50... Kxf6 {[%clk 0:00:06.3]} 51. Kg3 {[%clk
0:01:12]} 51... Kg5 {[%clk 0:00:07.4]} 52. e4 {[%clk 0:01:12.9]} 52... Kh5
{[%clk 0:00:08.5]} 53. Kf4 {[%clk 0:01:14]} 53... Kh4 {[%clk 0:00:09.8]} 54. e5
{[%clk 0:01:15.2]} 54... Kh3 {[%clk 0:00:11.6]} 55. e6 {[%clk 0:01:16.4]} 55...
Kg2 {[%clk 0:00:13.1]} 56. e7 {[%clk 0:01:17.7]} 56... Kxf2 {[%clk 0:00:14.6]}
57. Kxg4 {[%clk 0:01:19.2]} 1-0

[Event "*** Titled Tuesday 3|2 Blitz"]
[Site "Chess.com"]
[Date "2015.03.03"]
[Round "5"]
[White "Malev212"]
[Black "Aragon"]
[Result "1-0"]
[WhiteElo "2065"]
[BlackElo "1964"]
[TimeControl "180+2"]
[EndTime "12:01:29 PST"]
[Termination "Malev212 won by resignation"]

1. d4 {[%clk 0:02:37.1]} 1... d5 {[%clk 0:02:55.9]} 2. c4 {[%clk 0:02:37.4]}
2... e6 {[%clk 0:02:56]} 3. Nc3 {[%clk 0:02:38.2]} 3... c6 {[%clk 0:02:56.8]} 4.
e3 {[%clk 0:02:38.4]} 4... a6 {[%clk 0:02:54.5]} 5. Nf3 {[%clk 0:02:37.8]} 5...
Nf6 {[%clk 0:02:54.7]} 6. b3 {[%clk 0:02:37]} 6... Nbd7 {[%clk 0:02:48.5]} 7.
Bd3 {[%clk 0:02:36.8]} 7... Bd6 {[%clk 0:02:46.7]} 8. O-O {[%clk 0:02:36.8]}
8... O-O {[%clk 0:02:47.2]} 9. Bb2 {[%clk 0:02:37.2]} 9... b5 {[%clk 0:02:37]}
10. Qc2 {[%clk 0:02:32.6]} 10... Bb7 {[%clk 0:02:28.7]} 11. c5 {[%clk
0:02:26.8]} 11... Bc7 {[%clk 0:02:28]} 12. e4 {[%clk 0:02:27]} 12... g6 {[%clk
0:02:04.6]} 13. b4 {[%clk 0:02:24.7]} 13... Nh5 {[%clk 0:01:40.5]} 14. Rfe1
{[%clk 0:02:22.5]} 14... f5 {[%clk 0:01:31.1]} 15. exd5 {[%clk 0:02:21.3]} 15...
exd5 {[%clk 0:01:30.2]} 16. a4 {[%clk 0:02:10.8]} 16... Ndf6 {[%clk 0:01:16.7]}
17. Ne5 {[%clk 0:02:04]} 17... Ne4 {[%clk 0:01:14.5]} 18. f3 {[%clk 0:01:58.2]}
18... Ng5 {[%clk 0:00:46.3]} 19. Bc1 {[%clk 0:01:48.9]} 19... Nf7 {[%clk
0:00:46.3]} 20. Nxf7 {[%clk 0:01:44.4]} 20... Rxf7 {[%clk 0:00:46.7]} 21. axb5
{[%clk 0:01:42.4]} 21... axb5 {[%clk 0:00:46.1]} 22. Rxa8 {[%clk 0:01:41]} 22...
Qxa8 {[%clk 0:00:48]} 23. Bg5 {[%clk 0:01:38.7]} 23... Qb8 {[%clk 0:00:47.3]}
24. g3 {[%clk 0:00:58]} 24... Bxg3 {[%clk 0:00:39.6]} 25. Re6 {[%clk 0:00:56]}
25... Bf4 {[%clk 0:00:31.1]} 26. Qe2 {[%clk 0:00:55.3]} 26... Rf8 {[%clk
0:00:26]} 27. Be7 {[%clk 0:00:54.3]} 27... Ng7 {[%clk 0:00:07.3]} 28. Bxf8
{[%clk 0:00:43.3]} 28... Nxe6 {[%clk 0:00:08.3]} 29. Bd6 {[%clk 0:00:21]} 29...
Qc8 {[%clk 0:00:09.2]} 30. Bxb5 {[%clk 0:00:16.7]} 30... cxb5 {[%clk 0:00:09.8]}
31. Nxb5 {[%clk 0:00:16.9]} 31... Bxd6 {[%clk 0:00:08.6]} 32. Nxd6 {[%clk
0:00:16.9]} 32... Qd7 {[%clk 0:00:09.8]} 33. Qe5 {[%clk 0:00:12.6]} 33... Bc6
{[%clk 0:00:09]} 34. b5 {[%clk 0:00:12.9]} 34... Ba8 {[%clk 0:00:07.8]} 35. c6
{[%clk 0:00:12.5]} 35... Qe7 {[%clk 0:00:06.7]} 36. c7 {[%clk 0:00:11.4]} 36...
Bb7 {[%clk 0:00:06.9]} 37. Kh1 {[%clk 0:00:06.7]} 37... Qxc7 {[%clk 0:00:06.5]}
38. Qxe6+ {[%clk 0:00:07]} 38... Kg7 {[%clk 0:00:08.1]} 39. Ne8+ {[%clk
0:00:06.9]} 39... Kf8 {[%clk 0:00:09]} 40. Nxc7 {[%clk 0:00:07.8]} 1-0

[Event "*** Titled Tuesday 3|2 Blitz"]
[Site "Chess.com"]
[Date "2015.03.03"]
[Round "5"]
[White "Mugzyyy"]
[Black "BjarkeSahl"]
[Result "1-0"]
[WhiteElo "2367"]
[BlackElo "2082"]
[TimeControl "180+2"]
[EndTime "12:01:31 PST"]
[Termination "Mugzyyy won by resignation"]

1. d4 {[%clk 0:03:00]} 1... f5 {[%clk 0:02:56.8]} 2. g3 {[%clk 0:02:59.9]} 2...
Nf6 {[%clk 0:02:54.5]} 3. Bg2 {[%clk 0:03:01.5]} 3... g6 {[%clk 0:02:56.1]} 4.
Nf3 {[%clk 0:03:03]} 4... Bg7 {[%clk 0:02:57.6]} 5. O-O {[%clk 0:03:04.7]} 5...
O-O {[%clk 0:02:59.2]} 6. c4 {[%clk 0:03:06.4]} 6... d6 {[%clk 0:03:00.6]} 7.
Nc3 {[%clk 0:03:08.1]} 7... Qe8 {[%clk 0:03:01.5]} 8. d5 {[%clk 0:03:07.6]} 8...
c6 {[%clk 0:03:00]} 9. Nd4 {[%clk 0:03:07.9]} 9... Bd7 {[%clk 0:03:00.1]} 10.
Bf4 {[%clk 0:02:59.5]} 10... Na6 {[%clk 0:02:59.6]} 11. Qd2 {[%clk 0:02:58.4]}
11... Rc8 {[%clk 0:02:58.6]} 12. Bh6 {[%clk 0:02:55.7]} 12... Nc5 {[%clk
0:02:57.6]} 13. Bxg7 {[%clk 0:02:56.2]} 13... Kxg7 {[%clk 0:02:59.1]} 14. b4
{[%clk 0:02:55]} 14... Nce4 {[%clk 0:02:59.7]} 15. Nxe4 {[%clk 0:02:56.4]} 15...
Nxe4 {[%clk 0:03:00.4]} 16. Qb2 {[%clk 0:02:57.1]} 16... Nf6 {[%clk 0:02:51.3]}
17. b5 {[%clk 0:02:56.8]} 17... c5 {[%clk 0:02:48.8]} 18. Ne6+ {[%clk
0:02:57.8]} 18... Bxe6 {[%clk 0:02:47.3]} 19. dxe6 {[%clk 0:02:59.2]} 19... b6
{[%clk 0:02:42]} 20. a4 {[%clk 0:02:54.4]} 20... h6 {[%clk 0:02:39]} 21. a5
{[%clk 0:02:55.4]} 21... Rb8 {[%clk 0:02:30.6]} 22. axb6 {[%clk 0:02:56.1]}
22... axb6 {[%clk 0:02:30.3]} 23. Ra7 {[%clk 0:02:57.7]} 23... Kh7 {[%clk
0:02:11.2]} 24. Rfa1 {[%clk 0:02:58.3]} 24... Ng8 {[%clk 0:02:11.1]} 25. Rc7
{[%clk 0:02:55.6]} 25... Rf6 {[%clk 0:02:08.1]} 26. Bd5 {[%clk 0:02:56.3]} 26...
Qf8 {[%clk 0:02:09.4]} 27. Raa7 {[%clk 0:02:56.3]} 27... Qg7 {[%clk 0:02:08.2]}
28. Rcb7 {[%clk 0:02:35.3]} 28... Rff8 {[%clk 0:02:08.4]} 29. Qa3 {[%clk
0:02:27.6]} 29... f4 {[%clk 0:01:51.3]} 30. Rxb8 {[%clk 0:02:22.1]} 30... Rxb8
{[%clk 0:01:51.9]} 31. gxf4 {[%clk 0:02:23.6]} 31... Qd4 {[%clk 0:01:45.9]} 32.
Qe3 {[%clk 0:02:21.3]} 32... Kg7 {[%clk 0:01:37]} 33. Qxd4+ {[%clk 0:02:20.3]}
33... cxd4 {[%clk 0:01:37.9]} 34. Kf1 {[%clk 0:02:22]} 34... Kf6 {[%clk
0:01:37.7]} 35. e3 {[%clk 0:02:15.5]} 35... dxe3 {[%clk 0:01:35.5]} 36. fxe3
{[%clk 0:02:16.6]} 36... g5 {[%clk 0:01:37.1]} 37. Ke2 {[%clk 0:02:14]} 37...
gxf4 {[%clk 0:01:35.9]} 38. exf4 {[%clk 0:02:15.4]} 38... Kf5 {[%clk 0:01:37.3]}
39. Ke3 {[%clk 0:02:16.8]} 39... h5 {[%clk 0:01:34.7]} 40. h3 {[%clk 0:02:03.7]}
40... Kg6 {[%clk 0:01:24.2]} 41. Ra1 {[%clk 0:01:57.9]} 41... Kf5 {[%clk
0:01:22]} 42. Rg1 {[%clk 0:01:58.2]} 42... Kf6 {[%clk 0:01:18.8]} 43. Rg5 {[%clk
0:01:58.9]} 43... Nh6 {[%clk 0:01:18.4]} 44. Ke4 {[%clk 0:01:56.1]} 44... Rh8
{[%clk 0:01:04]} 45. Rxh5 {[%clk 0:01:54.7]} 45... Rh7 {[%clk 0:01:03.9]} 46. f5
{[%clk 0:01:46]} 46... Rh8 {[%clk 0:01:01.1]} 47. Kf4 {[%clk 0:01:47.2]} 47...
Rh7 {[%clk 0:01:02.3]} 48. Rg5 {[%clk 0:01:35]} 48... Rg7 {[%clk 0:01:03]} 49.
h4 {[%clk 0:01:36.5]} 49... Ng8 {[%clk 0:00:59.8]} 50. Bf3 {[%clk 0:01:27.1]}
50... Nh6 {[%clk 0:00:54.4]} 51. Be2 {[%clk 0:01:28.4]} 51... Ng8 {[%clk
0:00:54.9]} 52. Bh5 {[%clk 0:01:29.6]} 52... Nh6 {[%clk 0:00:55.8]} 53. Bf3
{[%clk 0:01:27.1]} 53... Ng8 {[%clk 0:00:56.5]} 54. Bd1 {[%clk 0:01:28.7]} 54...
Nh6 {[%clk 0:00:57.6]} 55. Bh5 {[%clk 0:01:30.3]} 55... Ng8 {[%clk 0:00:58.7]}
56. Bf7 {[%clk 0:01:23.6]} 56... Nh6 {[%clk 0:00:59]} 57. Rxg7 {[%clk
0:01:24.9]} 57... Kxg7 {[%clk 0:00:59.3]} 58. Kg5 {[%clk 0:01:26.6]} 58... Kf8
{[%clk 0:00:42.4]} 59. f6 {[%clk 0:01:23.9]} 59... Nxf7+ {[%clk 0:00:43]} 60.
exf7 {[%clk 0:01:25.3]} 60... Kxf7 {[%clk 0:00:44.5]} 61. fxe7 {[%clk
0:01:26.6]} 61... Kxe7 {[%clk 0:00:46]} 62. Kf5 {[%clk 0:01:25.5]} 62... Kf7
{[%clk 0:00:46.8]} 63. h5 {[%clk 0:01:27.1]} 63... Kg7 {[%clk 0:00:47.7]} 64.
Ke6 {[%clk 0:01:28.5]} 64... Kh6 {[%clk 0:00:49.3]} 65. Kxd6 {[%clk 0:01:29.9]}
65... Kxh5 {[%clk 0:00:50.9]} 66. Kc6 {[%clk 0:01:31.3]} 66... Kg6 {[%clk
0:00:52.5]} 67. Kxb6 {[%clk 0:01:32.9]} 1-0

[Event "*** Titled Tuesday 3|2 Blitz"]
[Site "Chess.com"]
[Date "2015.03.03"]
[Round "5"]
[White "KyronGriffith"]
[Black "alturas_pacificas"]
[Result "1-0"]
[WhiteElo "2165"]
[BlackElo "2053"]
[TimeControl "180+2"]
[EndTime "12:01:49 PST"]
[Termination "KyronGriffith won by resignation"]

1. e4 {[%clk 0:03:00]} 1... e5 {[%clk 0:02:57.2]} 2. Nf3 {[%clk 0:02:55.2]} 2...
Nf6 {[%clk 0:02:58.1]} 3. Nc3 {[%clk 0:02:55.3]} 3... Nc6 {[%clk 0:02:58.8]} 4.
d4 {[%clk 0:02:54.4]} 4... exd4 {[%clk 0:02:56.7]} 5. Nxd4 {[%clk 0:02:56.3]}
5... Bb4 {[%clk 0:02:57.5]} 6. Nxc6 {[%clk 0:02:56.3]} 6... bxc6 {[%clk
0:02:59.4]} 7. Bd3 {[%clk 0:02:57.6]} 7... d5 {[%clk 0:02:58]} 8. exd5 {[%clk
0:02:57.8]} 8... cxd5 {[%clk 0:02:57.3]} 9. O-O {[%clk 0:02:59.3]} 9... O-O
{[%clk 0:02:56.9]} 10. h3 {[%clk 0:02:59.4]} 10... Qd6 {[%clk 0:02:49.1]} 11.
Qf3 {[%clk 0:02:56.1]} 11... Bb7 {[%clk 0:02:43]} 12. a3 {[%clk 0:02:40.1]}
12... Bxc3 {[%clk 0:02:39.9]} 13. bxc3 {[%clk 0:02:42]} 13... Ne4 {[%clk
0:02:41.3]} 14. Rb1 {[%clk 0:02:32.3]} 14... Rab8 {[%clk 0:02:32.1]} 15. Be3
{[%clk 0:02:23.4]} 15... Nxc3 {[%clk 0:01:46]} 16. Rb3 {[%clk 0:02:23.1]} 16...
d4 {[%clk 0:01:46]} 17. Rxb7 {[%clk 0:02:22.6]} 17... Rxb7 {[%clk 0:01:45.6]}
18. Qxb7 {[%clk 0:02:24.5]} 18... dxe3 {[%clk 0:01:46.9]} 19. fxe3 {[%clk
0:02:26.4]} 19... Nd5 {[%clk 0:01:39.9]} 20. Qxa7 {[%clk 0:02:23.8]} 20... Re8
{[%clk 0:01:28]} 21. Bc4 {[%clk 0:02:12.1]} 21... Nf6 {[%clk 0:01:25.1]} 22. a4
{[%clk 0:01:12.3]} 22... h6 {[%clk 0:01:16.2]} 23. a5 {[%clk 0:01:11.8]} 23...
Qd2 {[%clk 0:01:01.5]} 24. Qxc7 {[%clk 0:01:11.8]} 24... Qxe3+ {[%clk
0:00:56.4]} 25. Kh1 {[%clk 0:01:12.7]} 25... Re7 {[%clk 0:00:56.1]} 26. Qb8+
{[%clk 0:00:57.1]} 26... Re8 {[%clk 0:00:52.9]} 27. Qb3 {[%clk 0:00:57.4]} 27...
Qa7 {[%clk 0:00:50.2]} 28. a6 {[%clk 0:00:57.8]} 28... Rb8 {[%clk 0:00:49.5]}
29. Bxf7+ {[%clk 0:00:37.2]} 29... Kh8 {[%clk 0:00:46]} 30. Qe6 {[%clk
0:00:36.1]} 30... Rf8 {[%clk 0:00:25.6]} 31. Bg6 {[%clk 0:00:36]} 31... Qc5
{[%clk 0:00:17.9]} 32. Ra1 {[%clk 0:00:31.7]} 32... Qc3 {[%clk 0:00:12.5]} 33.
Qe1 {[%clk 0:00:30.1]} 33... Qd4 {[%clk 0:00:07.2]} 34. a7 {[%clk 0:00:29.5]}
34... Ra8 {[%clk 0:00:08.6]} 35. Qa5 {[%clk 0:00:19.9]} 35... Ne4 {[%clk
0:00:07.3]} 36. Bxe4 {[%clk 0:00:17.4]} 36... Qxe4 {[%clk 0:00:09.2]} 37. Rb1
{[%clk 0:00:15.7]} 37... Kh7 {[%clk 0:00:07.7]} 38. Rb8 {[%clk 0:00:14.3]} 38...
Qc6 {[%clk 0:00:06.5]} 39. Rxa8 {[%clk 0:00:14.3]} 39... Qxa8 {[%clk 0:00:07.2]}
40. Qb6 {[%clk 0:00:14.7]} 40... Qe4 {[%clk 0:00:07]} 41. Qc7 {[%clk 0:00:13.2]}
41... Qe1+ {[%clk 0:00:05.5]} 42. Kh2 {[%clk 0:00:14.2]} 1-0